No. of Trans.,Dept. Family,Entity Name,Cert Date,Supplier Name,Reference,Gross Amt,Group/Department,Type of Expenditure - Subjective Codes
1,DCMS,EH,10/10/2013,Plowden and Smith,40045643,"31,185.60",National Collections-Capital Investment Programme,WIP Professional Works Advice
2,DCMS,EH,16/10/2013,Electrosonic Ltd,40045349,"189,932.36",National Collections-Capital Investment Programme,WIP Professional Works Advice
3,DCMS,EH,01/10/2013,William Anelay Limited,40044822,"41,314.80",Heritage Protection & Planning-Nat. Planning & Conservation,Fees for Professional Advice
4,DCMS,EH,04/10/2013,William Anelay Limited,40044855,"109,536.00",Heritage Protection & Planning-Nat. Planning & Conservation,Works for Heritage Buildings
5,DCMS,EH,15/10/2013,W H Smith and R Ensor SAP Scheme,40045442,"35,516.40",Resources-Office Estate,Rent - Operating Leases
6,DCMS,EH,15/10/2013,W H Smith and R Ensor SAP Scheme,40045442,"6,745.73",Resources-Office Estate,Insurance
7,DCMS,EH,10/10/2013,The National Trust Wiltshire,40044410,"36,809.80",National Collections-Historic Properties Department,Rent - Operating Leases
8,DCMS,EH,31/10/2013,Gander and White Shipping Ltd,40047814,"3,447.60",National Collections-Major Conservation Projects,Historic Artefacts Maintenance
9,DCMS,EH,31/10/2013,Gander and White Shipping Ltd,40047814,"33,312.00",National Collections-Major Conservation Projects,Historic Artefacts Maintenance
10,DCMS,EH,25/10/2013,PAYE Stonework and Restoration Ltd,40045004,"107,546.66",National Collections-Major Conservation Projects,Works for Heritage Buildings
11,DCMS,EH,25/10/2013,PAYE Stonework and Restoration Ltd,40045004,"46,091.44",National Collections-Major Conservation Projects,WIP Operational Building Works
12,DCMS,EH,23/10/2013,Gillards Worldwide,40046358,"51,584.89",National Collections-Historic Properties Department,Storage & Warehousing
13,DCMS,EH,09/10/2013,Historic Property Restoration Ltd,40045319,"12,336.74",National Collections-Property Maintenance Programme,Annual Cyclical Work M & E
14,DCMS,EH,09/10/2013,Historic Property Restoration Ltd,40045319,"2,581.20",National Collections-Property Maintenance Programme,Annual Cyclical Work M & E
15,DCMS,EH,09/10/2013,Historic Property Restoration Ltd,40045319,817.87,National Collections-Property Maintenance Programme,Leased Accomodation Maint
16,DCMS,EH,09/10/2013,Historic Property Restoration Ltd,40045319,"3,756.72",National Collections-Property Maintenance Programme,Leased Accomodation Maint
17,DCMS,EH,09/10/2013,Historic Property Restoration Ltd,40045319,"7,158.58",National Collections-Property Maintenance Programme,Annual Cyclical Works-Building
18,DCMS,EH,09/10/2013,Historic Property Restoration Ltd,40045319,"2,145.17",National Collections-Property Maintenance Programme,Annual Cyclical Works-Building
19,DCMS,EH,25/10/2013,Historic Property Restoration Ltd,40045742,"55,583.20",National Collections-Major Conservation Projects,Works for Heritage Buildings
20,DCMS,EH,14/10/2013,Korec,40045003,"55,051.80",Heritage Protection & Planning-Heritage Protection,Plant & Equipment > 10k
21,DCMS,EH,01/10/2013,Land and Water Services Ltd,40044708,"27,899.70",National Collections-Property Maintenance Programme,Planned Maintenance
22,DCMS,EH,23/10/2013,Enterprise Rent A Car UK Ltd,20052791,"38,170.82",Resources-Corporate,Car Hire
23,DCMS,EH,23/10/2013,Enterprise Rent A Car UK Ltd,20052791,-13.77,National Collections-Historic Properties Department,Car Hire
24,DCMS,EH,04/10/2013,Academia Ltd,40045088,"38,745.13",Resources-IMT,Software Maintenance
25,DCMS,EH,14/10/2013,Fairhurst Ward Abbotts Ltd,40045514,"132,112.68",National Collections-Capital Investment Programme,WIP Operational Building Works
26,DCMS,EH,14/10/2013,Ice Cream World Ltd,40045916,"42,649.11",National Collections-Historic Properties Department,Ice Cream Purchases
27,DCMS,EH,02/10/2013,Capita Secure Information Solutions Ltd,40042105,"246,784.62",Resources-IMT,ITFM
28,DCMS,EH,31/10/2013,Capita Secure Information Solutions Ltd,40044891,"246,784.62",Resources-IMT,ITFM
29,DCMS,EH,30/10/2013,Capita Secure Information Solutions Ltd,40047770,"45,500.00",Resources-IMT,Computer Consultancy
30,DCMS,EH,14/10/2013,Virgin Media,40043976,"31,406.40",Resources-IMT,Telephone and Communications
31,DCMS,EH,23/10/2013,Lodge & Sons (Builders) Ltd,40046892,"28,713.00",Heritage Protection & Planning-Nat. Planning & Conservation,Fees for Professional Advice
32,DCMS,EH,15/10/2013,Constantine Ltd,40045353,"24,876.00",National Collections-Capital Investment Programme,Works for Heritage Buildings
33,DCMS,EH,15/10/2013,Constantine Ltd,40045353,"1,056.00",National Collections-Capital Investment Programme,Works for Heritage Buildings
34,DCMS,EH,25/10/2013,The Hub Limited,40046423,"36,393.36",National Collections-Capital Investment Programme,WIP Professional Works Advice
35,DCMS,EH,14/10/2013,Specialist Computer Centres plc,40045452,"27,524.80",Resources-IMT,WIP Asset Purch Under 10k
36,DCMS,EH,14/10/2013,Vinci Construction UK Ltd,40046105,"46,996.80",National Collections-Capital Investment Programme,Works for Heritage Buildings
37,DCMS,EH,14/10/2013,Vinci Construction UK Ltd,40046105,"5,820.00",National Collections-Capital Investment Programme,WIP Operational Building Works
38,DCMS,EH,14/10/2013,Vinci Construction UK Ltd,40046105,"427,042.80",National Collections-Capital Investment Programme,WIP Professional Works Advice
39,DCMS,EH,14/10/2013,Vinci Construction UK Ltd,40046105,"200,242.80",National Collections-Capital Investment Programme,WIP Operational Building Works
40,DCMS,EH,14/10/2013,Vinci Construction UK Ltd,40046105,"217,096.80",National Collections-Capital Investment Programme,WIP Operational Building Works
41,DCMS,EH,14/10/2013,Vinci Construction UK Ltd,40046105,"94,942.80",National Collections-Capital Investment Programme,WIP Operational Building Works
42,DCMS,EH,14/10/2013,Vinci Construction UK Ltd,40046105,"14,092.80",National Collections-Capital Investment Programme,WIP Operational Building Works
43,DCMS,EH,14/10/2013,Vinci Construction UK Ltd,40046105,"37,424.40",National Collections-Capital Investment Programme,WIP Operational Building Works
44,DCMS,EH,14/10/2013,Vinci Construction UK Ltd,40046105,"3,783.60",National Collections-Capital Investment Programme,Works for Heritage Buildings
45,DCMS,EH,02/10/2013,MediaCom North Ltd,40043116,"1,350.00",National Collections-Marketing,Media
46,DCMS,EH,02/10/2013,MediaCom North Ltd,40043116,"44,483.75",National Collections-Marketing,Marketing Creative
47,DCMS,EH,02/10/2013,MediaCom North Ltd,40043116,"4,743.35",National Collections-Marketing,Media
48,DCMS,EH,02/10/2013,MediaCom North Ltd,40043116,"1,350.00",National Collections-Marketing,Media
49,DCMS,EH,02/10/2013,MediaCom North Ltd,40043116,510,National Collections-Marketing,Media
50,DCMS,EH,02/10/2013,MediaCom North Ltd,40043116,590,National Collections-Marketing,Media
51,DCMS,EH,23/10/2013,Smith & Milton Ltd,40045237,"30,252.00",National Collections-Marketing,Marketing Creative
52,DCMS,EH,09/10/2013,Nu-Weld Engineering Services Ltd,40045521,"41,727.00",National Collections-Capital Investment Programme,WIP Operational Building Works
53,DCMS,EH,30/10/2013,ISO,40047336,"36,600.00",National Collections-Capital Investment Programme,WIP Professional Works Advice
54,DCMS,EH,25/10/2013,STM Security Group  UK Ltd,40045311,"25,578.98",National Collections-Property Maintenance Programme,Security Guard & Monitor Stati
55,DCMS,EH,14/10/2013,Greenfold Systems Ltd,40044857,"161,026.80",National Collections-Capital Investment Programme,WIP Asset Purch Over 10k
56,DCMS,EH,21/10/2013,Greenfold Systems Ltd,40045324,"77,517.94",National Collections-Capital Investment Programme,WIP Asset Purch Over 10k
57,DCMS,EH,30/10/2013,Westover Land Rover Salisbury,40045819,275,National Collections-Capital Investment Programme,WIP Asset Purch Over 10k
58,DCMS,EH,30/10/2013,Westover Land Rover Salisbury,40045819,"24,797.16",National Collections-Capital Investment Programme,WIP Asset Purch Over 10k
59,DCMS,EH,30/10/2013,Westover Land Rover Salisbury,40045820,275,National Collections-Capital Investment Programme,WIP Asset Purch Over 10k
60,DCMS,EH,30/10/2013,Westover Land Rover Salisbury,40045820,"24,797.16",National Collections-Capital Investment Programme,WIP Asset Purch Over 10k
61,DCMS,EH,30/10/2013,Westover Land Rover Salisbury,40045821,"24,797.16",National Collections-Capital Investment Programme,WIP Asset Purch Over 10k
62,DCMS,EH,30/10/2013,Westover Land Rover Salisbury,40045821,275,National Collections-Capital Investment Programme,WIP Asset Purch Over 10k
63,DCMS,EH,30/10/2013,Westover Land Rover Salisbury,40045822,275,National Collections-Capital Investment Programme,WIP Asset Purch Over 10k
64,DCMS,EH,30/10/2013,Westover Land Rover Salisbury,40045822,"24,797.16",National Collections-Capital Investment Programme,WIP Asset Purch Over 10k
65,DCMS,EH,30/10/2013,Westover Land Rover Salisbury,40045823,275,National Collections-Capital Investment Programme,WIP Asset Purch Over 10k
66,DCMS,EH,30/10/2013,Westover Land Rover Salisbury,40045823,"24,797.16",National Collections-Capital Investment Programme,WIP Asset Purch Over 10k
67,DCMS,EH,02/10/2013,Severfield-Watson Structures Ltd,40044146,"58,080.00",Heritage Protection & Planning-Nat. Planning & Conservation,Commissioned Architects
68,DCMS,EH,01/10/2013,Aivaf Ltd,40044139,"36,101.76",National Collections-Capital Investment Programme,WIP Professional Works Advice
69,DCMS,EH,25/10/2013,Croft Building and Conservation Ltd,40047208,"31,406.75",National Collections-Major Conservation Projects,Works for Heritage Buildings
70,DCMS,EH,23/10/2013,Goppion SPA,20052798,"38,634.66",National Collections-Capital Investment Programme,WIP Professional Works Advice
71,DCMS,EH,23/10/2013,Goppion SPA,20052798,"25,756.44",National Collections-Capital Investment Programme,WIP Professional Works Advice
72,DCMS,EH,31/10/2013,GOPPION,20052899,"115,903.99",National Collections-Capital Investment Programme,WIP Professional Works Advice
73,DCMS,EH,14/10/2013,The Architectural Heritage Fund,90513738,"57,663.00",Heritage Protection & Planning-Nat. Planning & Conservation,GRANTS PAYABLE OTHER GRANTS
74,DCMS,EH,23/10/2013,St Peter & St Paul Buckingham PCC,82002196,"41,500.00",Heritage Protection & Planning-Nat. Planning & Conservation,GRANTS PAYABLE PLACES OF WORSHIP
75,DCMS,EH,07/10/2013,"PCC of St Nicholas' Church, Ganton",82002127,"31,050.00",Heritage Protection & Planning-Nat. Planning & Conservation,GRANTS PAYABLE PLACES OF WORSHIP
76,DCMS,EH,15/10/2013,St Johns Church Steeple Fund,82002165,"71,200.00",Heritage Protection & Planning-Nat. Planning & Conservation,GRANTS PAYABLE PLACES OF WORSHIP
77,DCMS,EH,08/10/2013,Parish of Kirkleatham PCC,82002139,"40,000.00",Heritage Protection & Planning-Nat. Planning & Conservation,GRANTS PAYABLE PLACES OF WORSHIP
78,DCMS,EH,15/10/2013,Cullompton Walronds Preserv Trust,82002155,"64,350.00",Heritage Protection & Planning-Nat. Planning & Conservation,GRANTS PAYABLE HISTORIC BUILDINGS
79,DCMS,EH,07/10/2013,The Vivat Trust Ltd,82002119,"40,000.00",Heritage Protection & Planning-Nat. Planning & Conservation,GRANTS PAYABLE HISTORIC BUILDINGS
80,DCMS,EH,14/10/2013,St Swithun's Parochial Church Council,82002149,"73,000.00",Heritage Protection & Planning-Nat. Planning & Conservation,GRANTS PAYABLE PLACES OF WORSHIP
81,DCMS,EH,08/10/2013,PCC of St Leonard Shoreditch,82002140,"75,600.00",Heritage Protection & Planning-Nat. Planning & Conservation,GRANTS PAYABLE PLACES OF WORSHIP
82,DCMS,EH,08/10/2013,Severndroog Castle BP Trust,82002135,"30,000.00",Heritage Protection & Planning-Nat. Planning & Conservation,GRANTS PAYABLE HISTORIC BUILDINGS
83,DCMS,EH,14/10/2013,Norwich Preservation Trust,82002150,"35,305.00",Heritage Protection & Planning-Nat. Planning & Conservation,GRANTS PAYABLE HISTORIC BUILDINGS
84,DCMS,EH,08/10/2013,St John the Evangelist PCC,82002138,"34,136.00",Heritage Protection & Planning-Nat. Planning & Conservation,GRANTS PAYABLE PLACES OF WORSHIP
85,DCMS,EH,25/10/2013,Thornhill PCC,82002204,"40,297.00",Heritage Protection & Planning-Nat. Planning & Conservation,GRANTS PAYABLE PLACES OF WORSHIP
86,DCMS,EH,07/10/2013,PCC of St Marys Catholic Church,82002129,"27,500.00",Heritage Protection & Planning-Nat. Planning & Conservation,GRANTS PAYABLE PLACES OF WORSHIP
87,DCMS,EH,07/10/2013,PCC of St Marys Catholic Church,82002130,"34,500.00",Heritage Protection & Planning-Nat. Planning & Conservation,GRANTS PAYABLE PLACES OF WORSHIP
88,DCMS,EH,21/10/2013,PCC of St Catherine's Church,82002173,"59,200.00",Heritage Protection & Planning-Nat. Planning & Conservation,GRANTS PAYABLE PLACES OF WORSHIP
89,DCMS,EH,25/10/2013,Gateway Church,82002208,"56,000.00",Heritage Protection & Planning-Nat. Planning & Conservation,GRANTS PAYABLE PLACES OF WORSHIP
90,DCMS,EH,21/10/2013,Hope Baptist Church,82002179,"69,500.00",Heritage Protection & Planning-Nat. Planning & Conservation,GRANTS PAYABLE PLACES OF WORSHIP
91,DCMS,EH,02/10/2013,Scarisbrick Hall Ltd,82002118,"39,834.00",Heritage Protection & Planning-Nat. Planning & Conservation,GRANTS PAYABLE HISTORIC BUILDINGS
92,DCMS,EH,08/10/2013,Downfield Windmill,82002137,"59,960.00",Heritage Protection & Planning-Nat. Planning & Conservation,GRANTS PAYABLE HISTORIC BUILDINGS
93,DCMS,EH,21/10/2013,Clophill Heritage Trust,82002188,"85,347.00",Heritage Protection & Planning-Nat. Planning & Conservation,GRANTS PAYABLE HISTORIC BUILDINGS
94,DCMS,EH,14/10/2013,Brancaster PCC,82002148,"28,802.00",Heritage Protection & Planning-Nat. Planning & Conservation,GRANTS PAYABLE PLACES OF WORSHIP
95,DCMS,EH,23/10/2013,Parochial Church Council of Westwell,82002194,"32,255.00",Heritage Protection & Planning-Nat. Planning & Conservation,GRANTS PAYABLE PLACES OF WORSHIP
96,DCMS,EH,07/10/2013,PCC Newent (St. Mary's) Glos,82002128,"25,000.00",Heritage Protection & Planning-Nat. Planning & Conservation,GRANTS PAYABLE PLACES OF WORSHIP
97,DCMS,EH,15/10/2013,Parochial Church Council of Worfield,82002163,"26,800.00",Heritage Protection & Planning-Nat. Planning & Conservation,GRANTS PAYABLE PLACES OF WORSHIP
98,DCMS,EH,15/10/2013,PCC of Ludlow,82002157,"28,000.00",Heritage Protection & Planning-Nat. Planning & Conservation,GRANTS PAYABLE PLACES OF WORSHIP
99,DCMS,EH,25/10/2013,PCC Waterhead Parish Church,82002207,"40,400.00",Heritage Protection & Planning-Nat. Planning & Conservation,GRANTS PAYABLE PLACES OF WORSHIP
100,DCMS,EH,08/10/2013,Sunderland Sikh Association,82002144,"27,500.00",Heritage Protection & Planning-Nat. Planning & Conservation,GRANTS PAYABLE PLACES OF WORSHIP
101,DCMS,EH,08/10/2013,Euston Farms,82002145,"34,531.00",Heritage Protection & Planning-Nat. Planning & Conservation,GRANTS PAYABLE HISTORIC BUILDINGS
102,DCMS,EH,14/10/2013,Baconsthorpe PCC,82002147,"27,000.00",Heritage Protection & Planning-Nat. Planning & Conservation,GRANTS PAYABLE PLACES OF WORSHIP
103,DCMS,EH,07/10/2013,Parochial Church Council of Leadenham,82002126,"65,500.00",Heritage Protection & Planning-Nat. Planning & Conservation,GRANTS PAYABLE PLACES OF WORSHIP
104,DCMS,EH,02/10/2013,"St Mary,  Widnes PCC General Fund",82002115,"78,300.00",Heritage Protection & Planning-Nat. Planning & Conservation,GRANTS PAYABLE PLACES OF WORSHIP
105,DCMS,EH,21/10/2013,PCC of St George's,82002177,"48,500.00",Heritage Protection & Planning-Nat. Planning & Conservation,GRANTS PAYABLE PLACES OF WORSHIP
106,DCMS,EH,15/10/2013,St Helen's Parish Church  General,82002164,"70,650.00",Heritage Protection & Planning-Nat. Planning & Conservation,GRANTS PAYABLE PLACES OF WORSHIP
107,DCMS,EH,08/10/2013,Parishes of Kentish Town,82002141,"73,500.00",Heritage Protection & Planning-Nat. Planning & Conservation,GRANTS PAYABLE PLACES OF WORSHIP
108,DCMS,EH,07/10/2013,All Saints Liverpool PCC,82002131,"89,000.00",Heritage Protection & Planning-Nat. Planning & Conservation,GRANTS PAYABLE PLACES OF WORSHIP
109,DCMS,EH,02/10/2013,PCC of St John the Divine,82002116,"50,500.00",Heritage Protection & Planning-Nat. Planning & Conservation,GRANTS PAYABLE PLACES OF WORSHIP
110,DCMS,EH,15/10/2013,Parochial Church Council of Yatton,82002169,"30,500.00",Heritage Protection & Planning-Nat. Planning & Conservation,GRANTS PAYABLE PLACES OF WORSHIP
111,DCMS,EH,08/10/2013,Mitcham Methodist Church,82002143,"62,500.00",Heritage Protection & Planning-Nat. Planning & Conservation,GRANTS PAYABLE PLACES OF WORSHIP
112,DCMS,EH,25/10/2013,Hilton Hall Limited,82002209,"56,071.00",Heritage Protection & Planning-Nat. Planning & Conservation,GRANTS PAYABLE HISTORIC BUILDINGS
113,DCMS,EH,07/10/2013,The National Trust,82002132,"130,252.00",Heritage Protection & Planning-Nat. Planning & Conservation,GRANTS PAYABLE HISTORIC BUILDINGS
114,DCMS,EH,21/10/2013,Panxworth PCC,82002183,"29,600.00",Heritage Protection & Planning-Nat. Planning & Conservation,GRANTS PAYABLE HISTORIC BUILDINGS
115,DCMS,EH,21/10/2013,St Johns Dovecote,82002184,"27,454.00",Heritage Protection & Planning-Nat. Planning & Conservation,GRANTS PAYABLE HISTORIC BUILDINGS
116,DCMS,EH,25/10/2013,"The Medieval Rectory, Church Farm",82002212,"40,500.00",Heritage Protection & Planning-Nat. Planning & Conservation,GRANTS PAYABLE HISTORIC BUILDINGS
117,DCMS,EH,23/10/2013,Essex County Council,82002200,"50,000.00",Heritage Protection & Planning-Nat. Planning & Conservation,GRANTS PAYABLE HISTORIC BUILDINGS
